fUST/lending_fUST_20250228
["ID","MTS","AMOUNT","RATE_DAILY","PERIOD"]
[354824193,1740719446571,-500.0,0.00079452,120]
[354824194,1740719446581,-500.0,0.00079452,120]
[354824195,1740719446590,-500.0,0.00079452,120]
[354824196,1740719446600,-500.0,0.00079452,120]
[354824197,1740719446610,-500.0,0.00079452,120]
[354824198,1740719446618,-500.0,0.00079452,120]
[354824199,1740719446627,-500.0,0.00079452,120]
[354824200,1740719446637,-500.0,0.00079452,120]
[354824201,1740719446646,-500.0,0.00079452,120]
[354824203,1740719446655,-500.0,0.00079452,120]
[354824205,1740719446666,-639.52598875,0.00079452,20]
[354824207,1740719446675,-580.81449512,0.00079452,120]
[354824209,1740719446684,-500.0,0.00079452,120]
[354824210,1740719446693,-500.0,0.00079452,120]
[354824213,1740719446703,-500.0,0.00079452,120]
[354824215,1740719446712,-500.0,0.00079452,120]
[354824216,1740719446721,-583.01643664,0.00079452,120]
[354824218,1740719446730,-918.5,0.00079452,120]
[354824220,1740719446739,-500.0,0.00079452,120]
[354824222,1740719446748,-500.0,0.00079452,120]
[354824224,1740719446757,-500.0,0.00079452,120]
[354824226,1740719446767,-191.45869358,0.00079452,120]
[354824228,1740719446776,-666.0,0.00079452,120]
[354824230,1740719446785,-500.0,0.00079452,120]
[354824232,1740719446794,-500.0,0.00079452,120]
[354824234,1740719446803,-500.0,0.00079452,120]
[354824236,1740719446812,-500.0,0.00079452,120]
[354824238,1740719446821,-500.0,0.00079452,120]
[354824240,1740719446830,-742.5,0.00079452,120]
[354824242,1740719446839,-500.0,0.00079452,120]
[354824244,1740719446848,-502.9211928,0.00079452,120]
[354824246,1740719446858,-500.0,0.00079452,120]
[354824249,1740719446867,-728.02,0.00079452,120]
[354824251,1740719446876,-500.0,0.00079452,120]
[354824253,1740719446886,-500.0,0.00079452,120]
[354824255,1740719446895,-500.0,0.00079452,120]
[354824257,1740719446904,-500.0,0.00079452,120]
[354824272,1740719447028,-500.0,0.00079452,120]
[354824274,1740719447038,-500.0,0.00079452,120]
[354824276,1740719447048,-500.0,0.00079452,120]
[354824278,1740719447057,-500.0,0.00079452,120]
[354824280,1740719447067,-500.0,0.00079452,120]
[354824282,1740719447076,-500.0,0.00079452,120]
[354824284,1740719447085,-500.0,0.00079452,120]
[354824286,1740719447094,-671.81,0.00079452,120]
[354824288,1740719447103,-500.0,0.00079452,120]
[354824290,1740719447112,-500.0,0.00079452,120]
[354824292,1740719447122,-530.31,0.00079452,120]
[354824294,1740719447131,-500.0,0.00079452,120]
[354824296,1740719447140,-500.0,0.00079452,2]
[354824298,1740719447149,-662.47,0.00079452,120]
[354824300,1740719447159,-501.35412303,0.00079452,120]
[354824302,1740719447170,-500.0,0.00079452,120]
[354824304,1740719447179,-500.0,0.00079452,120]
[354824306,1740719447188,-500.0,0.00079452,120]
[354824308,1740719447198,-500.0,0.00079452,120]
[354824310,1740719447207,-500.0,0.00079452,120]
[354824312,1740719447216,-500.0,0.00079452,120]
[354824314,1740719447226,-500.0,0.00079452,120]
[354824316,1740719447235,-500.0,0.00079452,120]
[354824318,1740719447244,-516.54526172,0.00079452,120]
[354824320,1740719447254,-500.0,0.00079452,120]
[354824322,1740719447263,-500.0,0.00079452,120]
[354824324,1740719447273,-500.0,0.00079452,120]
[354824326,1740719447282,-500.0,0.00079452,120]
[354824329,1740719447292,-835.25,0.00079452,120]
[354824331,1740719447301,-500.0,0.00079452,120]
[354824332,1740719447310,-500.0,0.00079452,120]
[354824335,1740719447319,-500.0,0.00079452,120]
[354824337,1740719447329,-500.0,0.00079452,120]
[354824339,1740719447339,-500.0,0.00079452,120]
[354824341,1740719447349,-500.0,0.00079452,120]
[354824343,1740719447358,-500.0,0.00079452,120]
[354824345,1740719447367,-664.36,0.00079452,120]
[354824347,1740719447376,-511.73291512,0.00079452,120]
[354824349,1740719447385,-1666.66,0.00079452,120]
[354824351,1740719447395,-500.0,0.00079452,120]
[354824353,1740719447404,-500.0,0.00079452,120]
[354824355,1740719447416,-500.0,0.00079452,120]
[354824357,1740719447426,-500.0,0.00079452,120]
[354824359,1740719447436,-512.36893885,0.00079452,120]
[354824361,1740719447445,-500.0,0.00079452,120]
[354824363,1740719447457,-500.0,0.00079452,120]
[354824365,1740719447466,-500.0,0.00079452,120]
[354824367,1740719447476,-500.0,0.00079452,120]
[354824368,1740719447485,-500.0,0.00079452,2]
[354824369,1740719447495,-500.0,0.00079452,120]
[354824371,1740719447504,-500.0,0.00079452,120]
[354824373,1740719447514,-500.0,0.00079452,120]
[354824375,1740719447523,-500.0,0.00079452,120]
[354824376,1740719447535,-500.0,0.00079452,120]
[354824377,1740719447544,-500.0,0.00079452,120]
[354824378,1740719447553,-500.0,0.00079452,120]
[354824379,1740719447562,-500.0,0.00079452,120]
[354824380,1740719447572,-500.0,0.00079452,120]
[354824381,1740719447581,-500.0,0.00079452,120]
[354824382,1740719447591,-500.0,0.00079452,120]
[354824383,1740719447600,-500.0,0.00079452,120]
[354824384,1740719447609,-500.0,0.00079452,120]
[354824385,1740719447619,-500.0,0.00079452,120]
[354824386,1740719447627,-1440.25,0.00079452,15]
[354824387,1740719447637,-500.0,0.00079452,120]
[354824388,1740719447646,-500.0,0.00079452,120]
[354824389,1740719447655,-500.0,0.00079452,120]
[354824390,1740719447667,-500.0,0.00079452,120]
[354824391,1740719447676,-500.0,0.00079452,120]
[354824392,1740719447686,-500.0,0.00079452,120]
[354824393,1740719447696,-500.0,0.00079452,120]
[354824394,1740719447706,-500.0,0.00079452,120]
[354824395,1740719447717,-500.0,0.00079452,120]
[354824396,1740719447726,-500.0,0.00079452,120]
[354824397,1740719447736,-500.0,0.00079452,120]
[354824398,1740719447746,-500.0,0.00079452,120]
[354824399,1740719447755,-510.5,0.00079452,120]
[354824400,1740719447766,-500.0,0.00079452,120]
[354824401,1740719447776,-500.0,0.00079452,120]
[354824402,1740719447786,-500.0,0.00079452,120]
[354824403,1740719447796,-500.0,0.00079452,120]
[354824404,1740719447806,-500.0,0.00079452,120]
[354824405,1740719447816,-500.0,0.00079452,120]
[354824406,1740719447826,-500.0,0.00079452,120]
[354824407,1740719447837,-500.0,0.00079452,120]
[354824408,1740719447847,-524.25,0.00079452,120]
[354824409,1740719447857,-500.0,0.00079452,120]
[354824410,1740719447866,-500.0,0.00079452,120]
[354824411,1740719447876,-500.0,0.00079452,120]
[354824412,1740719447887,-500.0,0.00079452,120]
[354824413,1740719447897,-766.06,0.00079452,120]
[354824414,1740719447907,-623.68605377,0.00079452,120]
[354824415,1740719447919,-500.0,0.00079452,120]
[354824416,1740719447928,-500.0,0.00079452,120]
[354824417,1740719447937,-504.81217776,0.00079452,120]
[354824418,1740719447947,-500.0,0.00079452,120]
[354824419,1740719447956,-500.0,0.00079452,120]
[354824420,1740719447966,-500.0,0.00079452,120]
[354824421,1740719447975,-484.7159725,0.00079452,120]
[354824422,1740719447985,-503.68719524,0.00079452,120]
[354824423,1740719447995,-579.0,0.00079452,120]
[354824424,1740719448004,-500.0,0.00079452,120]
[354824425,1740719448014,-500.0,0.00079452,120]
[354824426,1740719448024,-733.99,0.00079452,120]
[354824427,1740719448035,-500.0,0.00079452,120]
[354824428,1740719448045,-500.0,0.00079452,120]
[354824429,1740719448056,-1675.02192,0.00079452,120]
[354824430,1740719448067,-500.0,0.00079452,120]
[354824431,1740719448076,-500.0,0.00079452,120]
[354824432,1740719448087,-500.0,0.00079452,120]
[354824433,1740719448097,-500.0,0.00079452,120]
[354824434,1740719448107,-1675.02192,0.00079452,120]
[354824435,1740719448117,-500.0,0.00079452,120]
[354824436,1740719448126,-500.0,0.00079452,120]
[354824437,1740719448135,-500.0,0.00079452,120]
[354824438,1740719448145,-500.0,0.00079452,120]
[354824439,1740719448155,-151.0,0.00079452,120]
[354824440,1740719448164,-500.0,0.00079452,120]
[354824441,1740719448174,-500.0,0.00079452,120]
[354824442,1740719448184,-500.0,0.00079452,120]
[354824443,1740719448194,-500.0,0.00079452,120]
[354824444,1740719448204,-500.0,0.00079452,120]
[354824445,1740719448214,-151.0,0.00079452,120]
[354824446,1740719448223,-500.0,0.00079452,120]
[354824447,1740719448232,-500.0,0.00079452,120]
[354824448,1740719448242,-500.0,0.00079452,120]
[354824449,1740719448251,-500.0,0.00079452,120]
[354824450,1740719448260,-3447.93,0.00079452,120]
[354824451,1740719448270,-500.0,0.00079452,120]
[354824452,1740719448280,-500.0,0.00079452,120]
[354824453,1740719448289,-500.0,0.00079452,120]
[354824454,1740719448299,-207.613008,0.00079452,120]
[354824455,1740719448308,-500.0,0.00079452,120]
[354824456,1740719448317,-500.0,0.00079452,120]
[354824457,1740719448327,-207.613008,0.00079452,120]
[354824458,1740719448337,-500.0,0.00079452,120]
[354824459,1740719448347,-536.31,0.00079452,120]
[354824460,1740719448357,-500.0,0.00079452,120]
[354824461,1740719448366,-500.0,0.00079452,120]
[354824462,1740719448376,-500.0,0.00079452,120]
[354824463,1740719448386,-151.0,0.00079452,120]
[354824464,1740719448396,-500.0,0.00079452,120]
[354824465,1740719448406,-270.41956514,0.00079452,120]
[354824466,1740719448417,-500.0,0.00079452,120]
[354824467,1740719448428,-500.0,0.00079452,120]
[354824468,1740719448437,-500.0,0.00079452,120]
[354824469,1740719448448,-151.0,0.00079452,120]
[354824470,1740719448461,-500.0,0.00079452,120]
[354824471,1740719448470,-500.0,0.00079452,120]
[354824472,1740719448479,-500.0,0.00079452,120]
[354824473,1740719448488,-500.0,0.00079452,120]
[354824474,1740719448498,-5408.32,0.00079452,120]
[354824475,1740719448508,-500.0,0.00079452,120]
[354824476,1740719448517,-500.0,0.00079452,120]
[354824477,1740719448527,-500.0,0.00079452,120]
[354824478,1740719448538,-500.0,0.00079452,120]
[354824479,1740719448548,-1492.64,0.00079452,120]
[354824480,1740719448558,-500.0,0.00079452,120]
[354824481,1740719448567,-500.0,0.00079452,120]
[354824482,1740719448576,-7613.95,0.00079452,7]
[354824483,1740719448586,-500.0,0.00079452,120]
[354824484,1740719448595,-596.16,0.00079452,120]
[354824485,1740719448605,-628.40446825,0.00079452,120]
[354824486,1740719448615,-151.0,0.00079452,120]
[354824487,1740719448624,-500.0,0.00079452,120]
[354824488,1740719448633,-2475.49,0.00079452,120]
[354824489,1740719448642,-500.0,0.00079452,120]
[354824490,1740719448651,-500.0,0.00079452,120]
[354824491,1740719448662,-753.35,0.00079452,120]
[354824492,1740719448672,-500.0,0.00079452,120]
[354824493,1740719448681,-500.0,0.00079452,30]
[354824494,1740719448691,-500.0,0.00079452,120]
[354824495,1740719448700,-500.0,0.00079452,120]
[354824496,1740719448710,-500.0,0.00079452,120]
[354824497,1740719448719,-500.0,0.00079452,45]
[354824498,1740719448729,-528.89,0.00079452,120]
[354824499,1740719448738,-500.0,0.00079452,120]
[354824500,1740719448747,-500.0,0.00079452,120]
[354824501,1740719448756,-500.0,0.00079452,120]
[354824502,1740719448765,-500.0,0.00079452,120]
[354824503,1740719448774,-151.0,0.00079452,120]
[354824504,1740719448784,-500.0,0.00079452,120]
[354824505,1740719448794,-798.45,0.00079452,120]
[354824506,1740719448803,-500.0,0.00079452,120]
[354824507,1740719448813,-1771.41,0.00079452,120]
[354824508,1740719448822,-503.89633789,0.00079452,120]
[354824509,1740719448831,-151.0,0.00079452,120]
[354824510,1740719448841,-500.0,0.00079452,120]
[354824511,1740719448850,-151.0,0.00079452,120]
[354824512,1740719448860,-500.0,0.00079452,120]
[354824513,1740719448869,-500.0,0.00079452,120]
[354824514,1740719448879,-1284.86,0.00079452,120]
[354824515,1740719448888,-2051.02,0.00079452,120]
[354824516,1740719448897,-500.0,0.00079452,120]
[354824517,1740719448906,-500.0,0.00079452,120]
[354824518,1740719448917,-3293.63,0.00079452,120]
[354824519,1740719448927,-500.0,0.00079452,120]
[354824520,1740719448937,-500.0,0.00079452,120]
[354824521,1740719448947,-500.0,0.00079452,120]
[354824522,1740719448956,-500.0,0.00079452,120]
[354824523,1740719448966,-1604.17,0.00079452,120]
[354824524,1740719448976,-151.0,0.00079452,120]
[354824525,1740719448986,-6304.17,0.00079452,120]
[354824526,1740719448995,-503.46553787,0.00079452,120]
[354824527,1740719449005,-500.0,0.00079452,120]
[354824528,1740719449015,-500.0,0.00079452,120]
[354824529,1740719449025,-591.64266652,0.00079452,120]
[354824530,1740719449035,-500.0,0.00079452,120]
[354824531,1740719449050,-500.0,0.00079452,120]
[354824532,1740719449060,-1158.67,0.00079452,120]
[354824533,1740719449070,-500.0,0.00079452,120]
[354824534,1740719449080,-500.0,0.00079452,120]
[354824535,1740719449090,-502.97080208,0.00079452,120]
[354824536,1740719449100,-500.0,0.00079452,120]
[354824537,1740719449110,-500.0,0.00079452,120]
[354824538,1740719449119,-500.0,0.00079452,120]
[354824539,1740719449129,-500.0,0.00079452,120]
[354824540,1740719449138,-500.0,0.00079452,120]
[354824541,1740719449148,-500.0,0.00079452,120]
[354824542,1740719449157,-500.0,0.00079452,120]
[354824543,1740719449172,-500.0,0.00079452,120]
[354824544,1740719449181,-1817.46,0.00079452,120]
[354824545,1740719449191,-151.0,0.00079452,120]
[354824546,1740719449200,-500.0,0.00079452,120]
[354824547,1740719449211,-500.0,0.00079452,120]
[354824548,1740719449220,-590.34,0.00079452,120]
[354824549,1740719449229,-500.0,0.00079452,120]
[354824550,1740719449238,-500.0,0.00079452,120]
[354824551,1740719449247,-151.0,0.00079452,120]
[354824552,1740719449256,-852.31,0.00079452,120]
[354824553,1740719449265,-151.0,0.00079452,120]
[354824554,1740719449275,-500.0,0.00079452,120]
[354824555,1740719449284,-500.0,0.00079452,120]
[354824556,1740719449293,-151.0,0.00079452,120]
[354824557,1740719449303,-500.0,0.00079452,120]
[354824558,1740719449312,-500.0,0.00079452,120]
[354824559,1740719449322,-151.0,0.00079452,30]
[354824560,1740719449331,-300.74465343,0.00079452,120]
[354824561,1740719449341,-647.92,0.00079452,120]
[354824562,1740719449351,-500.0,0.00079452,120]
[354824563,1740719449360,-500.0,0.00079452,120]
[354824564,1740719449370,-242.17,0.00079452,120]
[354824565,1740719449379,-500.0,0.00079452,120]
[354824566,1740719449389,-49172.59,0.00079452,7]
[354824567,1740719449398,-500.0,0.00079452,120]
[354824568,1740719449407,-502.97558319,0.00079452,120]
[354824569,1740719449418,-400.69957813,0.00079452,120]
[354824570,1740719449551,-105.19352635,0.00079452,120]
[354824571,1740719449561,-500.0,0.00079452,120]
[354824572,1740719449570,-907.1,0.00079452,120]
[354824573,1740719449580,-1000.0,0.00079452,120]
[354824574,1740719449590,-1132.18,0.00079452,120]
[354824575,1740719449600,-500.0,0.00079452,120]
[354824576,1740719449610,-1628.82,0.00079452,120]
[354824577,1740719449619,-151.0,0.00079452,120]
[354824578,1740719449629,-568.85,0.00079452,120]
[354824579,1740719449639,-500.0,0.00079452,120]
[354824580,1740719449649,-500.0,0.00079452,120]
[354824581,1740719449658,-500.0,0.00079452,120]
[354824582,1740719449670,-500.0,0.00079452,120]
[354824583,1740719449679,-500.0,0.00079452,120]
[354824584,1740719449688,-1023.75,0.00079452,120]
[354824585,1740719449698,-502.91799938,0.00079452,120]
[354824586,1740719449707,-503.82093164,0.00079452,120]
[354824587,1740719449716,-500.0,0.00079452,120]
[354824588,1740719449841,-500.0,0.00079452,120]
[354824589,1740719449851,-500.0,0.00079452,120]
[354824590,1740719449861,-500.0,0.00079452,120]
[354824591,1740719449871,-500.0,0.00079452,120]
[354824592,1740719449880,-151.0,0.00079452,120]
[354824593,1740719449889,-500.0,0.00079452,120]
[354824594,1740719449898,-237.37023758,0.00079452,120]
[354824595,1740719449908,-500.0,0.00079452,120]
[354824596,1740719449919,-500.0,0.00079452,120]
[354824597,1740719449929,-500.0,0.00079452,120]
[354824598,1740719449939,-502.56998836,0.00079452,120]
[354824599,1740719449949,-1444.98,0.00079452,120]
[354824600,1740719449958,-1401.74,0.00079452,120]
[354824601,1740719449967,-243.18463434,0.00079452,120]
[354824602,1740719449977,-336.2881086,0.00079452,120]
[354824603,1740719449986,-147.81129226,0.00079452,120]
[354824604,1740719450034,161.0,0.00053,120]
[354824605,1740719450316,-428.07,0.00054784,10]
[354824606,1740719450325,-695.68,0.00054794,120]
[354824607,1740719450334,-500.0,0.00054794,120]
[354824608,1740719450343,-503.5439522,0.00054794,120]
[354824609,1740719450352,-500.0,0.00054794,120]
[354824610,1740719450362,-161.0,0.00056096,120]
[354824611,1740719450372,-163.0,0.00070681,120]
[354824612,1740719450382,-356.126659,0.00079452,120]
[354824613,1740719450391,-500.0,0.00079452,120]
[354824614,1740719450400,-500.0,0.00079452,120]
[354824615,1740719450409,-500.0,0.00079452,120]
[354824616,1740719450420,-500.0,0.00079452,120]
[354824617,1740719450430,-500.0,0.00079452,120]
[354824618,1740719450439,-953.81,0.00079452,120]
[354824619,1740719450452,-500.0,0.00079452,120]
[354824620,1740719450462,-695.68,0.00079452,120]
[354824621,1740719450473,-500.0,0.00079452,120]
[354824622,1740719450482,-151.893702,0.00079457,120]
[354824623,1740719450491,-151.0,0.00079457,120]
[354824624,1740719450500,-605.30973099,0.00079473,14]
[354824625,1740719450509,-1015.0,0.000795,45]
[354824626,1740719450518,-200.0,0.0008,120]
[354824627,1740719450530,-200.0,0.0008,120]
[354824628,1740719450539,-500.0,0.0008,30]
[354824629,1740719450548,-1015.0,0.00081,46]
[354824630,1740719450557,-3404.73,0.0008203,120]
[354824631,1740719450567,-1015.0,0.000825,47]
[354824632,1740719450577,-200.0,0.00083,120]
[354824633,1740719450586,-17577.65846044,0.00083,60]
[354824634,1740719450615,-13.2903765,0.00083,60]
[354824635,1740719450673,-500.0,0.00054794,120]
[354824636,1740719450682,-847.07999999,0.00083,60]
[354824637,1740719450720,-8922.60116307,0.00083,60]
[354824638,1740719450729,-181.26,0.00083,60]
[354824639,1740719450738,-151.0,0.00083,120]
[354824640,1740719450748,-2000.0,0.00083245,7]
[354824641,1740719450757,-2000.0,0.00083245,15]
[354824642,1740719450766,-5000.0,0.00083274,120]
[354824643,1740719450775,-2421.0,0.000834,120]
[354824644,1740719450784,-200.0,0.00084,120]
[354824645,1740719450794,-1069.94,0.00084,48]
[354824646,1740719450803,-18342.86646608,0.00084347,120]
[354824647,1740719453038,-3617.35831928,0.00084347,120]
[354824648,1740719675731,55685.73965518,0.00074353,120]
[354824651,1740719949891,3000.0,0.00074316,120]
[354824652,1740719961131,1000.0,0.00074316,30]
[354824653,1740720115782,100000.0,0.00074316,30]
[354824654,1740720207224,9000.0,0.00025,2]
[354824655,1740720254579,3000.0,0.00074331,120]
[354824656,1740720272749,100000.0,0.00074331,30]
[354824658,1740720348112,-383.23,0.0004626,120]
[354824659,1740720348135,-1018.0,0.00049,120]
[354824660,1740720348159,-170.0,0.000503,120]
[354824661,1740720348183,-1018.0,0.00051,120]
[354824662,1740720348206,-428.4189856,0.000529,120]
[354824663,1740720348229,-1018.0,0.00053,120]
[354824664,1740720348251,-170.0,0.000536,120]
[354824665,1740720348274,-178.56420551,0.00054694,2]
[354824666,1740720348296,-1212.08308471,0.00054694,28]
[354824667,1740720348320,-442.0,0.00054769,15]
[354824668,1740720348345,-500.0,0.00054773,7]
[354824669,1740720348367,-470.23656807,0.00054773,2]
[354824670,1740720348390,-508.99007306,0.00054773,10]
[354824671,1740720348412,-358.40326438,0.00054773,10]
[354824676,1740720428080,-334.215,0.0004596,2]
[354824678,1740720440088,-288.5131359,0.0004596,2]
[354824679,1740720440113,-500.0,0.00054773,10]
[354824680,1740720440137,-402.22,0.00054784,30]
[354824681,1740720440161,-538.89,0.00054784,10]
[354824682,1740720440188,-841.39,0.00054784,10]
[354824683,1740720440213,-701.15,0.00054784,10]
[354824684,1740720440238,-500.0,0.00054793,30]
[354824685,1740720440267,-389.55505007,0.00054793,120]
[354824686,1740720440293,-424.44905388,0.00054793,120]
[354824687,1740720440318,-1919.34561694,0.00054793,120]
[354824688,1740720444095,-584.3,0.00054784,10]
[354824689,1740720444118,-1254.33438306,0.00054793,120]
[354824690,1740720444139,-500.0,0.00054794,120]
[354824691,1740720444161,-250.64811696,0.00054794,120]
[354824692,1740720444184,-631.2019315,0.00054794,120]
[354824693,1740720444205,-501.18781957,0.00054794,120]
[354824694,1740720444226,-539.65979783,0.00054794,120]
[354824695,1740720444247,-500.0,0.00054794,120]
[354824696,1740720444271,-500.0,0.00054794,120]
[354824697,1740720444293,-500.0,0.00054794,120]
[354824698,1740720444315,-528.81789347,0.00054794,120]
[354824699,1740720444336,-500.0,0.00054794,120]
[354824700,1740720444356,-500.0,0.00054794,120]
[354824701,1740720444377,-500.0,0.00054794,120]
[354824702,1740720444398,-102.69346894,0.00054794,120]
[354824703,1740720449084,-3041.44,0.00054793,120]
[354824704,1740720449106,-39.72863631,0.00054794,120]
[354824705,1740720469261,5996.17509283,0.00074331,120]
[354824710,1740720514076,658.50686073,0.00021,2]
[354824712,1740720515239,1200.44124047,0.00074331,90]
[354824713,1740720517247,10341.49313927,0.000145,2]
[354824714,1740720517274,49225.04637709,0.000145,2]
[354824715,1740720518750,57097.51757399,0.00018,15]
[354824718,1740720523440,1390.01111327,0.0002023,2]
[354824719,1740720523768,722.23252053,0.0001,7]
[354824720,1740720526064,1000.0,0.00012,30]
[354824721,1740720547121,-19975.96224587,0.00029,2]
[354824722,1740720547143,-24900.0,0.00041205,2]
[354824723,1740720547164,-150.0,0.0004198,2]
[354824724,1740720547184,-6470.03500005,0.00049,120]
[354824725,1740720548125,-178.56420551,0.00054694,2]
[354824726,1740720548146,-500.0,0.00054773,10]
[354824727,1740720548167,-234.82,0.00054784,10]
[354824728,1740720548188,-500.0,0.00054794,120]
[354824729,1740720548210,-170.23890162,0.00054794,120]
[354824730,1740720548232,-500.0,0.00054794,120]
[354824731,1740720548253,-500.0,0.00054794,120]
[354824732,1740720548274,-500.0,0.00054794,120]
[354824733,1740720548296,-500.0,0.00054794,120]
[354824734,1740720548318,-500.0,0.00054794,120]
[354824735,1740720548339,-500.0,0.00054794,120]
[354824736,1740720548362,-500.0,0.00054794,120]
[354824737,1740720548382,-500.0,0.00054794,120]
[354824738,1740720548404,-292.03660162,0.00054794,120]
[354824739,1740720548425,-500.0,0.00054794,120]
[354824740,1740720548447,-500.0,0.00054794,120]
[354824741,1740720548467,-500.0,0.00054794,120]
[354824742,1740720548489,-500.0,0.00054794,120]
[354824743,1740720548509,-499.13578458,0.00054794,120]
[354824744,1740720552100,-1.55413426,0.00054794,120]
[354824745,1740720552121,-500.0,0.00054794,120]
[354824746,1740720552141,-500.0,0.00054794,120]
[354824747,1740720552162,-500.0,0.00054794,120]
[354824748,1740720552182,-500.0,0.00054794,120]
[354824749,1740720552203,-639.52598875,0.00054794,20]
[354824750,1740720552223,-500.0,0.00054794,120]
[354824751,1740720552243,-500.0,0.00054794,120]
[354824752,1740720552263,-500.0,0.00054794,120]
[354824753,1740720552283,-500.0,0.00054794,120]
[354824754,1740720552303,-583.01643664,0.00054794,120]
[354824755,1740720552322,-500.0,0.00054794,120]
[354824756,1740720552342,-458.93615037,0.00054794,120]
[354824757,1740720552364,-500.0,0.00054794,120]
[354824758,1740720552384,-580.81449512,0.00054794,120]
[354824759,1740720552404,-500.0,0.00054794,120]
[354824760,1740720552424,-500.0,0.00054794,120]
[354824761,1740720552445,-427.78644235,0.00054794,120]
[354824762,1740720553093,-72.21355765,0.00054794,120]
[354824763,1740720553118,-500.0,0.00054794,120]
[354824764,1740720553139,-500.0,0.00054794,120]
[354824765,1740720553159,-500.0,0.00054794,120]
[354824766,1740720553180,-500.0,0.00054794,120]
[354824767,1740720553201,-501.35412303,0.00054794,120]
[354824768,1740720553221,-500.0,0.00054794,120]
[354824769,1740720553242,-500.0,0.00054794,120]
[354824770,1740720553263,-500.0,0.00054794,120]
[354824771,1740720553284,-500.0,0.00054794,120]
[354824772,1740720553304,-500.0,0.00054794,120]
[354824773,1740720553326,-500.0,0.00054794,120]
[354824774,1740720553346,-500.0,0.00054794,120]
[354824775,1740720553369,-500.0,0.00054794,120]
[354824776,1740720553391,-500.0,0.00054794,120]
[354824777,1740720553411,-500.0,0.00054794,120]
[354824778,1740720553432,-500.0,0.00054794,120]
[354824779,1740720553452,-500.0,0.00054794,120]
[354824780,1740720553473,-500.0,0.00054794,120]
[354824781,1740720553492,-500.0,0.00054794,120]
[354824782,1740720553512,-500.0,0.00054794,120]
[354824783,1740720553532,-500.0,0.00054794,120]
[354824784,1740720553552,-500.0,0.00054794,2]
[354824785,1740720553573,-500.0,0.00054794,120]
[354824786,1740720553594,-98.268441,0.00054794,120]
[354824796,1740720607187,150.0,0.00045,120]
[354824797,1740720618354,700.70561571,0.00053735,2]
[354824816,1740720632772,-300.0,0.00054694,120]
[354824819,1740720633011,-42.73518848,0.00054694,120]
[354824820,1740720633023,-447.78,0.00054784,10]
[354824821,1740720633033,-308.21481152,0.00054784,10]
[354824822,1740720633232,-64.93518848,0.00054784,10]
[354824823,1740720633242,-310.95,0.00054784,10]
[354824824,1740720633251,-346.94957339,0.00054794,120]
[354824857,1740720638799,-259.13,0.00054784,10]
[354824859,1740720638811,-54.78198561,0.00054794,120]
[354824861,1740720638820,-939.19,0.00054794,120]
[354824863,1740720638831,-500.0,0.00054794,120]
[354824865,1740720638843,-500.0,0.00054794,120]